[Event "BAN-chT SAIF POWERTEC 2020"]
[Site "Dhaka"]
[Date "2021.03.21"]
[Round "3.8"]
[White "Subrota, Biswas"]
[Black "Masum, Hossain"]
[Result "1-0"]
[ECO "B70"]
[WhiteElo "2262"]
[BlackElo "2054"]
[Annotator "ChessBase"]
[PlyCount "63"]
[EventDate "2021.03.19"]
[EventType "team-tourn"]
[EventCountry "BAN"]
[SourceTitle "playchess.com"]
[Source "ChessBase"]
[SourceQuality "1"]
[WhiteTeam "Bangladesh"]
[BlackTeam "Bangladesh"]
[WhiteTeamCountry "BAN"]
[BlackTeamCountry "BAN"]
[TimeControl "5400+30"]

1. e4 {[%emt 0:04:08]} c5 {[%emt 0:00:00]} 2. Nf3 {[%emt 0:00:03]} d6 {[%emt 0:00:08]} 3. d4 {[%emt 0:00:07]} cxd4 {[%emt 0:00:02]} 4. Nxd4 {[%emt 0:00:04]} Nf6 {[%emt 0:00:10]} 5. Nc3 {[%emt 0:00:02]} g6 {[%emt 0:00:12]} 6. g3 {[%emt 0:04:33]} Bg7 {[%emt 0:00:03]} 7. Bg2 {[%emt 0:00:02]} O-O {[%emt 0:00:13]} 8. O-O {[%emt 0:00:19]} Nc6 {[%emt 0:00:19]} 9. Nde2 {[%emt 0:04:10]} Bd7 {[%emt 0:04:37]} 10. h3 {[%emt 0:00:19]} Rc8 {[%emt 0:00:05]} 11. b3 {[%emt 0:01:04]} Nb4 {[%emt 0:05:32]} 12. a3 {[%emt 0:14:12]} Na6 {[%emt 0:08:49]} 13. Be3 {[%emt 0:11:01]} b6 {[%emt 0:02:14]} 14. Qd2 {[%emt 0:02:28]} Bc6 {[%emt 0:09:30]} 15. b4 {[%emt 0:09:52]} Nc7 {[%emt 0:02:11]} 16. e5 {[%emt 0:00:29]} Bxg2 {[%emt 0:01:40]} 17. exf6 {[%emt 0:01:45]} Bxh3 {[%emt 0:00:50]} 18. fxg7 {[%emt 0:00:08]} Re8 {[%emt 0:00:09]} 19. Rfd1 {[%emt 0:06:51]} Bg4 {[%emt 0:00:47]} 20. Kg2 {[%emt 0:00:11]} Qd7 {[%emt 0:00:16]} 21. f3 {[%emt 0:00:16]} Qc6 {[%emt 0:01:11]} 22. Nd4 {[%emt 0:00:08]} Qb7 {[%emt 0:00:22]} 23. Kf2 {[%emt 0:03:42]} Bd7 {[%emt 0:10:28]} 24. Rh1 {[%emt 0:01:35]} d5 {[%emt 0:30:42]} 25. Bf4 {[%emt 0:02:48]} f6 {[%emt 0:17:58]} 26. Bxc7 {[%emt 0:03:26]} Rxc7 {[%emt 0:00:02]} 27. Nde2 {[%emt 0:05:15]} e6 {[%emt 0:02:49]} 28. Qf4 {[%emt 0:00:30]} Kf7 {[%emt 0:00:38]} 29. g8=Q+ {[%emt 0:03:51]} Rxg8 {[%emt 0:01:05]} 30. Rxh7+ {[%emt 0:00:04]} Rg7 {[%emt 0:00:21]} 31. Qh6 {[%emt 0:00:18]} Rxh7 {[%emt 0:01:26]} 32. Qxh7+ {[%emt 0:00:03]} 1-0

[Event "BAN-chT SAIF POWERTEC 2020"]
[Site "Dhaka"]
[Date "2021.03.21"]
[Round "3.12"]
[White "Chatterjee, Debaraj"]
[Black "Rahman, Taibur"]
[Result "1/2-1/2"]
[ECO "E04"]
[WhiteElo "2223"]
[BlackElo "2215"]
[Annotator "ChessBase"]
[PlyCount "82"]
[EventDate "2021.03.19"]
[EventType "team-tourn"]
[EventCountry "BAN"]
[SourceTitle "playchess.com"]
[Source "ChessBase"]
[SourceQuality "1"]
[WhiteTeam "Bangladesh"]
[BlackTeam "Bangladesh"]
[WhiteTeamCountry "BAN"]
[BlackTeamCountry "BAN"]
[TimeControl "5400+30"]

1. d4 {[%emt 1:30:30]} d5 {[%emt 1:30:30]} 2. c4 {[%emt 0:00:30]} e6 {[%emt 0:00:30]} 3. Nf3 {[%emt 0:00:30]} Nf6 {[%emt 0:00:30]} 4. g3 {[%emt 0:00:30]} dxc4 {[%emt 0:00:30]} 5. Bg2 {[%emt 0:00:30]} c5 {[%emt 0:00:30]} 6. O-O {[%emt 0:00:30]} Nc6 {[%emt 0:00:30]} 7. dxc5 {[%emt 0:00:30]} Qxd1 {[%emt 0:00:30]} 8. Rxd1 {[%emt 0:00:30]} Bxc5 {[%emt 0:00:30]} 9. Nbd2 {[%emt 0:00:30]} c3 {[%emt 0:00:30]} 10. bxc3 {[%emt 0:00:30]} Bd7 {[%emt 0:00:30]} 11. Nb3 {[%emt 0:00:30]} Be7 {[%emt 0:00:30]} 12. Nfd4 {[%emt 0:00:30]} O-O {[%emt 0:00:30]} 13. Nxc6 {[%emt 0:00:30]} Bxc6 {[%emt 0:00:30]} 14. Bxc6 {[%emt 0:00:30]} bxc6 {[%emt 0:00:30]} 15. c4 {[%emt 0:00:30]} Rfd8 {[%emt 0:00:30]} 16. Be3 {[%emt 0:00:30]} Ne4 {[%emt 0:00:30]} 17. Rac1 {[%emt 0:00:30]} Ba3 {[%emt 0:00:30]} 18. Rxd8+ {[%emt 0:00:30]} Rxd8 {[%emt 0:00:30]} 19. Rc2 {[%emt 0:00:30]} a6 {[%emt 0:00:30]} 20. f3 {[%emt 0:00:30]} Rd1+ {[%emt 0:00:30]} 21. Kg2 {[%emt 0:00:30]} Nd6 {[%emt 0:00:30]} 22. Na5 {[%emt 0:00:30]} c5 {[%emt 0:00:30]} 23. Nb3 {[%emt 0:00:30]} Nb7 {[%emt 0:00:30]} 24. Bc1 {[%emt 0:00:30]} Bxc1 {[%emt 0:00:30]} 25. Nxc1 {[%emt 0:00:30]} Kf8 {[%emt 0:00:30]} 26. Nd3 {[%emt 0:00:30]} Rb1 {[%emt 0:00:30]} 27. h4 {[%emt 0:00:30]} Ke7 {[%emt 0:00:30]} 28. g4 {[%emt 0:00:30]} f6 {[%emt 0:00:30]} 29. Rc3 {[%emt 0:00:30]} Kd6 {[%emt 0:00:30]} 30. Ra3 {[%emt 0:00:30]} a5 {[%emt 0:00:30]} 31. Rb3 {[%emt 0:00:30]} Rxb3 {[%emt 0:00:30]} 32. axb3 {[%emt 0:00:30]} Nd8 {[%emt 0:00:30]} 33. e3 {[%emt 0:00:30]} Nc6 {[%emt 0:00:30]} 34. Kf2 {[%emt 0:00:30]} Ne5 {[%emt 0:00:30]} 35. Nxe5 {[%emt 0:00:30]} Kxe5 {[%emt 0:00:30]} 36. Ke2 {[%emt 0:00:30]} f5 {[%emt 0:00:30]} 37. gxf5 {[%emt 0:00:30]} exf5 {[%emt 0:00:30]} 38. Kf2 {[%emt 0:00:30]} g6 {[%emt 0:00:30]} 39. Kg2 {[%emt 0:00:30]} h6 {[%emt 0:00:30]} 40. Kf2 {[%emt 0:00:30]} g5 {[%emt 0:00:30]} 41. h5 {[%emt 0:00:30]} Ke6 {[%emt 0:00:30]} 1/2-1/2

[Event "BAN-chT SAIF POWERTEC 2020"]
[Site "Dhaka"]
[Date "2021.03.23"]
[Round "5.8"]
[White "Mohammed Abdul, Malek"]
[Black "Asif, Mahmud"]
[Result "1/2-1/2"]
[ECO "D94"]
[WhiteElo "2134"]
[BlackElo "1907"]
[Annotator "ChessBase"]
[PlyCount "64"]
[EventDate "2021.03.19"]
[EventType "team-tourn"]
[EventCountry "BAN"]
[SourceTitle "playchess.com"]
[Source "ChessBase"]
[SourceQuality "1"]
[TimeControl "5400+30"]

1. d4 {[%emt 0:00:00]} Nf6 {[%emt 0:00:00]} 2. Nf3 {[%emt 0:00:00]} g6 {[%emt 0:00:29]} 3. c4 {[%emt 0:00:00]} Bg7 {[%emt 0:01:03]} 4. Nc3 {[%emt 0:00:05]} d5 {[%emt 0:00:44]} 5. e3 {[%emt 0:00:15]} O-O {[%emt 0:02:42]} 6. Be2 {[%emt 0:01:08]} c5 {[%emt 0:00:52]} 7. O-O {[%emt 0:02:32]} cxd4 {[%emt 0:02:00]} 8. exd4 {[%emt 0:00:20]} Nc6 {[%emt 0:01:54]} 9. h3 {[%emt 0:00:47]} Bf5 {[%emt 0:04:25]} 10. Be3 {[%emt 0:00:28]} dxc4 {[%emt 0:10:31]} 11. Bxc4 {[%emt 0:00:17]} Ne4 {[%emt 0:03:20]} 12. Rc1 {[%emt 0:09:56]} Nxc3 {[%emt 0:03:27]} 13. bxc3 {[%emt 0:00:19]} Rc8 {[%emt 0:05:15]} 14. Be2 {[%emt 0:07:09]} Na5 {[%emt 0:16:18]} 15. c4 {[%emt 0:02:15]} Qc7 {[%emt 0:06:49]} 16. Qa4 {[%emt 0:02:20]} Bd7 {[%emt 0:04:38]} 17. Qa3 {[%emt 0:02:43]} Qd8 {[%emt 0:06:58]} 18. c5 {[%emt 0:04:53]} Be6 {[%emt 0:02:19]} 19. Rfd1 {[%emt 0:02:33]} Bd5 {[%emt 0:01:42]} 20. Ne5 {[%emt 0:08:38]} f6 {[%emt 0:05:19]} 21. Nf3 {[%emt 0:07:45]} Qc7 {[%emt 0:03:02]} 22. Ne1 {[%emt 0:04:32]} Nc6 {[%emt 0:05:46]} 23. Nd3 {[%emt 0:04:05]} e5 {[%emt 0:02:14]} 24. dxe5 {[%emt 0:00:53]} fxe5 {[%emt 0:00:35]} 25. Nb4 {[%emt 0:02:44]} Bf7 {[%emt 0:03:47]} 26. Nxc6 {[%emt 0:03:26]} bxc6 {[%emt 0:00:28]} 27. Bf3 {[%emt 0:03:28]} Be6 {[%emt 0:01:44]} 28. Rd6 {[%emt 0:00:25]} Rxf3 {[%emt 0:00:25]} 29. gxf3 {[%emt 0:08:20]} Bd5 {[%emt 0:00:59]} 30. Rd1 {[%emt 0:03:33]} Qf7 {[%emt 0:02:22]} 31. R1xd5 {[%emt 0:05:33]} cxd5 {[%emt 0:00:15]} 32. Qb3 {[%emt 0:00:48]} d4 {[%emt 0:02:27]} 1/2-1/2

[Event "BAN-chT SAIF POWERTEC 2020"]
[Site "Dhaka"]
[Date "2021.03.23"]
[Round "5.11"]
[White "Chatterjee, Debaraj"]
[Black "Islam, Khandaker Aminul"]
[Result "1-0"]
[ECO "E04"]
[WhiteElo "2223"]
[BlackElo "2174"]
[Annotator "ChessBase"]
[PlyCount "105"]
[EventDate "2021.03.19"]
[EventType "team-tourn"]
[EventCountry "BAN"]
[SourceTitle "playchess.com"]
[Source "ChessBase"]
[SourceQuality "1"]
[TimeControl "5400+30"]

1. d4 {[%emt 1:30:30]} Nf6 {[%emt 1:30:30]} 2. c4 {[%emt 0:00:30]} e6 {[%emt 0:00:30]} 3. g3 {[%emt 0:00:30]} d5 {[%emt 0:00:30]} 4. Nf3 {[%emt 0:00:30]} dxc4 {[%emt 0:00:30]} 5. Bg2 {[%emt 0:00:30]} Bb4+ {[%emt 0:00:30]} 6. Bd2 {[%emt 0:00:30]} a5 {[%emt 0:00:30]} 7. Qc2 {[%emt 0:00:30]} c5 {[%emt 0:00:30]} 8. dxc5 {[%emt 0:00:30]} Bxc5 {[%emt 0:00:30]} 9. Qxc4 {[%emt 0:00:30]} Nbd7 {[%emt 0:00:30]} 10. O-O {[%emt 0:00:30]} O-O {[%emt 0:00:30]} 11. Nc3 {[%emt 0:00:30]} b6 {[%emt 0:00:30]} 12. Rfd1 {[%emt 0:00:30]} Qe7 {[%emt 0:00:30]} 13. Qh4 {[%emt 0:00:30]} Bb7 {[%emt 0:00:30]} 14. Bf4 {[%emt 0:00:30]} Bc6 {[%emt 0:00:30]} 15. Ne5 {[%emt 0:00:30]} Nxe5 {[%emt 0:00:30]} 16. Bxe5 {[%emt 0:00:30]} Bxg2 {[%emt 0:00:30]} 17. Bxf6 {[%emt 0:00:30]} Qxf6 {[%emt 0:00:30]} 18. Qxf6 {[%emt 0:00:30]} gxf6 {[%emt 0:00:30]} 19. Kxg2 {[%emt 0:00:30]} Rfc8 {[%emt 0:00:30]} 20. Na4 {[%emt 0:00:30]} b5 {[%emt 0:00:30]} 21. Nxc5 {[%emt 0:00:30]} Rxc5 22. Rac1 {[%emt 0:00:30]} Rac8 {[%emt 0:01:00]} 23. Rd8+ {[%emt 0:00:30]} Rxd8 {[%emt 0:00:30]} 24. Rxc5 {[%emt 0:00:30]} Rb8 {[%emt 0:00:30]} 25. b3 {[%emt 0:00:30]} Kg7 {[%emt 0:00:30]} 26. a4 {[%emt 0:00:30]} bxa4 {[%emt 0:00:30]} 27. bxa4 {[%emt 0:00:30]} Ra8 {[%emt 0:00:30]} 28. Kf3 {[%emt 0:00:30]} Ra7 {[%emt 0:00:30]} 29. Ke3 {[%emt 0:00:30]} f5 {[%emt 0:00:30]} 30. Kd3 {[%emt 0:00:30]} Kg6 {[%emt 0:00:30]} 31. Kc4 {[%emt 0:00:30]} f6 {[%emt 0:00:30]} 32. f4 {[%emt 0:00:30]} Kh5 {[%emt 0:00:30]} 33. h3 {[%emt 0:00:30]} Rg7 {[%emt 0:00:30]} 34. g4+ {[%emt 0:00:30]} Kh4 {[%emt 0:00:30]} 35. gxf5 {[%emt 0:00:30]} exf5 {[%emt 0:00:30]} 36. Rxf5 {[%emt 0:00:30]} Rf7 {[%emt 0:00:30]} 37. e4 {[%emt 0:00:30]} Kxh3 {[%emt 0:00:30]} 38. e5 {[%emt 0:00:30]} Rc7+ {[%emt 0:00:30]} 39. Kd5 {[%emt 0:00:30]} fxe5 {[%emt 0:00:30]} 40. fxe5 {[%emt 0:00:30]} Rd7+ {[%emt 0:00:30]} 41. Kc6 {[%emt 0:00:30]} Rd4 {[%emt 0:00:30]} 42. e6 {[%emt 0:00:30]} Rxa4 {[%emt 0:00:30]} 43. e7 {[%emt 0:00:30]} Re4 {[%emt 0:00:30]} 44. Kd6 {[%emt 0:00:30]} Rxe7 {[%emt 0:00:30]} 45. Kxe7 {[%emt 0:00:30]} Kg4 {[%emt 0:00:30]} 46. Rxa5 {[%emt 0:00:30]} h5 {[%emt 0:00:30]} 47. Kf6 {[%emt 0:00:30]} h4 {[%emt 0:00:30]} 48. Ra4+ {[%emt 0:00:30]} Kg3 {[%emt 0:00:30]} 49. Kg5 {[%emt 0:00:30]} h3 {[%emt 0:00:30]} 50. Ra3+ {[%emt 0:00:30]} Kg2 {[%emt 0:00:30]} 51. Kg4 {[%emt 0:00:30]} h2 {[%emt 0:00:30]} 52. Ra2+ {[%emt 0:00:30]} Kg1 {[%emt 0:00:30]} 53. Kg3 {[%emt 0:00:30]} 1-0

[Event "BAN-chT SAIF POWERTEC 2020"]
[Site "Dhaka"]
[Date "2021.03.23"]
[Round "5.12"]
[White "Subrota, Biswas"]
[Black "Islam, Mohammad Aminul"]
[Result "1-0"]
[ECO "A53"]
[WhiteElo "2262"]
[BlackElo "2078"]
[Annotator "ChessBase"]
[PlyCount "99"]
[EventDate "2021.03.19"]
[EventType "team-tourn"]
[EventCountry "BAN"]
[SourceTitle "playchess.com"]
[Source "ChessBase"]
[SourceQuality "1"]
[TimeControl "5400+30"]

1. d4 {[%emt 1:30:30]} Nf6 {[%emt 1:30:30]} 2. c4 {[%emt 0:00:30]} d6 {[%emt 0:00:30]} 3. Nc3 {[%emt 0:00:30]} e5 {[%emt 0:00:30]} 4. d5 {[%emt 0:00:30]} c6 {[%emt 0:00:30]} 5. e4 {[%emt 0:00:30]} Be7 {[%emt 0:00:30]} 6. Be2 {[%emt 0:00:30]} Na6 {[%emt 0:00:30]} 7. Be3 {[%emt 0:00:30]} Qa5 {[%emt 0:00:30]} 8. f3 {[%emt 0:00:30]} O-O {[%emt 0:00:30]} 9. a3 {[%emt 0:00:30]} cxd5 {[%emt 0:00:30]} 10. cxd5 {[%emt 0:00:30]} Bd7 {[%emt 0:00:30]} 11. b4 {[%emt 0:00:30]} Qd8 {[%emt 0:00:30]} 12. Bd3 {[%emt 0:00:30]} Nh5 {[%emt 0:00:30]} 13. Qd2 {[%emt 0:00:30]} Nf4 {[%emt 0:00:30]} 14. Bc2 {[%emt 0:00:30]} Rc8 {[%emt 0:00:30]} 15. g3 {[%emt 0:00:30]} Qc7 {[%emt 0:00:30]} 16. gxf4 {[%emt 0:00:30]} Qxc3 {[%emt 0:00:30]} 17. Qxc3 {[%emt 0:00:30]} Rxc3 {[%emt 0:00:30]} 18. Kd2 {[%emt 0:00:30]} Rfc8 {[%emt 0:00:30]} 19. Bd3 {[%emt 0:00:30]} exf4 {[%emt 0:00:30]} 20. Bd4 {[%emt 0:00:30]} Bf6 {[%emt 0:00:30]} 21. Bxf6 {[%emt 0:00:30]} gxf6 {[%emt 0:00:30]} 22. Ne2 {[%emt 0:00:30]} Rb3 {[%emt 0:00:30]} 23. Ra2 {[%emt 0:00:30]} Kf8 {[%emt 0:00:30]} 24. Rf1 {[%emt 0:00:30]} Nb8 {[%emt 0:00:30]} 25. Bc2 {[%emt 0:00:30]} Re3 {[%emt 0:00:30]} 26. Bd3 {[%emt 0:00:30]} Rxd3+ {[%emt 0:00:30]} 27. Kxd3 {[%emt 0:00:30]} Bb5+ {[%emt 0:00:30]} 28. Kd2 {[%emt 0:00:30]} Nd7 {[%emt 0:00:30]} 29. Rc1 {[%emt 0:00:30]} Rxc1 {[%emt 0:00:30]} 30. Nxc1 {[%emt 0:00:30]} Ne5 {[%emt 0:00:30]} 31. Kc3 {[%emt 0:00:30]} Bc4 {[%emt 0:00:30]} 32. Nb3 {[%emt 0:00:30]} f5 {[%emt 0:00:30]} 33. exf5 {[%emt 0:00:30]} Bxd5 {[%emt 0:00:30]} 34. Rd2 {[%emt 0:00:30]} Bxb3 {[%emt 0:00:30]} 35. Kxb3 {[%emt 0:00:30]} Ke7 {[%emt 0:00:30]} 36. Rd4 {[%emt 0:00:30]} Kf6 {[%emt 0:00:30]} 37. Rxf4 {[%emt 0:00:30]} b5 {[%emt 0:00:30]} 38. Rh4 {[%emt 0:00:30]} Kg7 {[%emt 0:00:30]} 39. Rd4 {[%emt 0:00:30]} Kf6 {[%emt 0:00:30]} 40. Rxd6+ {[%emt 0:00:30]} Kxf5 {[%emt 0:00:30]} 41. Rh6 {[%emt 0:00:30]} Nxf3 {[%emt 0:00:30]} 42. Rxh7 {[%emt 0:00:30]} Kg6 {[%emt 0:00:30]} 43. Rh3 {[%emt 0:00:30]} Nd4+ {[%emt 0:00:30]} 44. Kc3 {[%emt 0:00:30]} Ne2+ {[%emt 0:00:30]} 45. Kd2 {[%emt 0:00:30]} Nf4 {[%emt 0:00:30]} 46. Rg3+ {[%emt 0:00:30]} Kf5 {[%emt 0:00:30]} 47. Ke3 {[%emt 0:00:30]} Nd5+ {[%emt 0:00:30]} 48. Kf3 {[%emt 0:00:30]} Nf6 {[%emt 0:00:30]} 49. h4 {[%emt 0:00:30]} Nh7 {[%emt 0:00:30]} 50. Rg7 {[%emt 0:00:30]} 1-0

[Event "BAN-chT SAIF POWERTEC 2020"]
[Site "Dhaka"]
[Date "2021.03.25"]
[Round "7.3"]
[White "Ahmed, Sheikh Nasir"]
[Black "Mollah Abdullah, Al Rakib"]
[Result "1-0"]
[ECO "B06"]
[WhiteElo "2193"]
[BlackElo "2463"]
[Annotator "RC"]
[PlyCount "116"]
[EventDate "2021.03.19"]
[EventType "team-tourn"]
[EventCountry "BAN"]
[SourceTitle "playchess.com"]
[Source "ChessBase"]
[SourceQuality "1"]
[TimeControl "5400+30"]

1. e4 {[%emt 0:00:00]} g6 {[%emt 0:00:00]} 2. d4 {[%emt 0:00:00]} Bg7 {[%emt 0:00:00]} 3. Nc3 {[%emt 0:00:16]} d6 {[%emt 1:31:30]} 4. Be3 {[%emt 0:06:20]} a6 {[%emt 0:00:00]} 5. Qd2 {[%emt 0:08:49]} b5 {[%emt 0:00:00]} 6. a3 {[%emt 0:01:27]} Nd7 {[%emt 0:00:00]} 7. f4 {[%emt 0:00:54]} e6 {[%emt 0:00:00]} 8. Nf3 {[%emt 0:00:23]} Bb7 {[%emt 0:00:00]} 9. Bd3 {[%emt 0:10:46]} Ne7 {[%emt 0:00:00]} 10. O-O {[%emt 0:05:06]} d5 {[%emt 0:00:00]} 11. Bf2 {[%emt 0:10:07]} dxe4 {[%emt 0:00:00]} 12. Bxe4 {[%emt 0:01:26]} Bxe4 {[%emt 0:00:00]} 13. Nxe4 {[%emt 0:00:03]} Nf6 {[%emt 0:00:00]} 14. Nc5 {[%emt 0:51:23]} O-O {[%emt 0:00:00]} 15. a4 {[%emt 0:00:00]} Qd5 {[%emt 0:00:00]} 16. Rfe1 {[%emt 0:01:00]} Ng4 {[%emt 0:00:00]} 17. c3 {[%emt 0:00:00]} Nf5 {[%emt 0:00:00]} 18. Ne5 {[%emt 0:00:00]} Nxf2 {[%emt 0:00:00]} 19. Qxf2 {[%emt 0:00:00]} Rfd8 {[%emt 0:00:00]} 20. Qf3 {[%emt 0:00:00]} Qxf3 {[%emt 0:00:00]} 21. Nxf3 {[%emt 0:00:00]} Bf8 {[%emt 0:00:00]} 22. Nd3 {[%emt 0:00:00]} Bd6 {[%emt 0:00:00]} 23. Nfe5 {[%emt 0:00:00]} Ne7 {[%emt 0:00:00]} 24. g3 {[%emt 0:00:00]} b4 {[%emt 0:00:00]} 25. Rec1 {[%emt 0:00:00]} bxc3 {[%emt 0:00:00]} 26. bxc3 {[%emt 0:00:00]} f6 {[%emt 0:01:57]} 27. Nc4 {[%emt 0:00:00]} Rab8 {[%emt 0:00:52]} 28. Rab1 {[%emt 0:00:00]} Kf7 {[%emt 0:02:25]} 29. Kf2 {[%emt 0:00:13]} Nd5 {[%emt 0:01:17]} 30. Nxd6+ {[%emt 0:01:09]} cxd6 {[%emt 0:00:02]} 31. c4 {[%emt 0:00:38]} Ne7 {[%emt 0:07:27]} 32. a5 {[%emt 0:03:17]} Nc6 {[%emt 0:00:00]} 33. d5 {[%emt 0:00:31]} Rxb1 {[%emt 0:00:00]} 34. Rxb1 {[%emt 0:00:03]} Nxa5 {[%emt 0:00:00]} 35. dxe6+ {[%emt 0:00:29]} Kxe6 {[%emt 0:00:00]} 36. c5 {[%emt 0:03:40]} Rc8 {[%emt 0:00:00]} 37. Ra1 {[%emt 0:00:30]} Nb3 {[%emt 0:00:00]} 38. Rxa6 {[%emt 0:00:00]} Nxc5 {[%emt 0:00:04]} 39. Nxc5+ {[%emt 0:00:00]} Rxc5 {[%emt 0:03:56]} 40. Kf3 {[%emt 0:00:27]} Rc2 {[%emt 0:00:00]} 41. h3 {[%emt 0:00:16]} Rc3+ {[%emt 0:00:00]} 42. Kf2 {[%emt 0:00:35]} h5 {[%emt 0:00:00]} 43. h4 {[%emt 0:00:22]} Kd5 {[%emt 0:00:00]} 44. Rb6 {[%emt 0:01:12]} Rd3 {[%emt 0:00:03]} 45. Rb4 {[%emt 0:00:36]} Rd4 {[%emt 0:00:17]} 46. Rb8 {[%emt 0:00:12]} Ke4 {[%emt 0:00:12]} 47. Rg8 {[%emt 0:00:08]} Kf5 {[%emt 0:00:19]} 48. Kg2 {[%emt 0:00:12]} Rd2+ {[%emt 0:00:35]} 49. Kf3 {[%emt 0:00:17]} Rd3+ {[%emt 0:00:14]} 50. Kf2 {[%emt 0:00:12]} d5 {[%emt 0:00:10]} 51. Rg7 {[%emt 0:01:10]} d4 {[%emt 0:00:38]} 52. Rg8 {[%emt 0:00:02]} Ra3 {[%emt 0:00:51]} 53. Rd8 {[%emt 0:01:38]} d3 {[%emt 0:02:08]} 54. Rd6 {[%emt 0:00:10]} Rb3 {[%emt 0:00:24]} 55. Kf3 {[%emt 0:00:50]} d2+ {[%emt 0:00:23]} 56. Kf2 {[%emt 0:00:01]} Kg4 {[%emt 0:00:15]} 57. Rxd2 {[%emt 0:00:02]} Rf3+ {[%emt 0:00:15]} 58. Ke2 {[%emt 0:00:05]} Rxg3 {[%emt 0:01:10]} 1-0

[Event "BAN-chT SAIF POWERTEC 2020"]
[Site "Dhaka"]
[Date "2021.03.26"]
[Round "8.4"]
[White "Rahman, Taibur"]
[Black "Mehdi Hasan Parag"]
[Result "0-1"]
[ECO "D38"]
[WhiteElo "2215"]
[BlackElo "2204"]
[Annotator "ChessBase"]
[PlyCount "80"]
[EventDate "2021.03.19"]
[EventType "team-tourn"]
[EventCountry "BAN"]
[SourceTitle "playchess.com"]
[Source "ChessBase"]
[SourceQuality "1"]
[TimeControl "5400+30"]

1. d4 {[%emt 0:00:00]} Nf6 {[%emt 0:00:00]} 2. c4 {[%emt 0:00:00]} e6 {[%emt 0:00:00]} 3. Nf3 {[%emt 1:31:30]} d5 {[%emt 0:00:21]} 4. Nc3 {[%emt 0:00:00]} Bb4 {[%emt 1:31:39]} 5. cxd5 {[%emt 0:00:00]} exd5 {[%emt 0:00:30]} 6. Bg5 {[%emt 0:01:30]} h6 {[%emt 0:00:00]} 7. Bh4 {[%emt 0:00:30]} O-O {[%emt 0:00:00]} 8. e3 {[%emt 0:00:00]} Bf5 {[%emt 0:00:00]} 9. Be2 {[%emt 0:01:00]} Nbd7 {[%emt 0:00:00]} 10. O-O {[%emt 0:00:00]} c6 {[%emt 0:00:00]} 11. Qb3 {[%emt 0:00:00]} Bxc3 {[%emt 0:00:00]} 12. bxc3 {[%emt 0:00:00]} g5 {[%emt 0:00:00]} 13. Bg3 {[%emt 0:00:00]} Ne4 {[%emt 0:00:00]} 14. Qxb7 {[%emt 0:00:00]} Qb6 {[%emt 0:00:00]} 15. Qa6 {[%emt 0:00:00]} Nxc3 {[%emt 0:00:00]} 16. Rfc1 {[%emt 0:00:00]} Nxe2+ {[%emt 0:00:00]} 17. Qxe2 {[%emt 0:00:30]} Rfe8 {[%emt 0:00:00]} 18. Ne5 {[%emt 0:00:30]} Nxe5 {[%emt 0:00:00]} 19. Bxe5 {[%emt 0:01:00]} Re6 {[%emt 0:00:00]} 20. Rc3 {[%emt 0:00:00]} Rae8 {[%emt 0:00:30]} 21. Rb3 {[%emt 0:00:00]} Qa5 {[%emt 0:00:00]} 22. Rc1 {[%emt 0:00:00]} f6 {[%emt 0:00:00]} 23. Bg3 {[%emt 0:00:00]} Kg7 {[%emt 0:00:00]} 24. Rb7+ {[%emt 0:00:00]} R8e7 {[%emt 0:00:00]} 25. Rb8 {[%emt 0:00:00]} Qa3 {[%emt 0:00:00]} 26. Qd2 {[%emt 0:00:00]} Qd3 {[%emt 0:00:00]} 27. Qb2 {[%emt 0:00:00]} h5 {[%emt 0:02:00]} 28. h4 {[%emt 0:00:00]} gxh4 {[%emt 0:00:00]} 29. Bxh4 {[%emt 0:00:00]} Qe4 {[%emt 0:00:00]} 30. Bg3 {[%emt 0:00:00]} h4 {[%emt 0:00:00]} 31. Bf4 {[%emt 0:00:00]} Bh7 {[%emt 0:00:00]} 32. Rb7 {[%emt 0:00:00]} h3 {[%emt 0:00:00]} 33. f3 {[%emt 0:00:00]} Qd3 {[%emt 0:01:00]} 34. Rxe7+ {[%emt 0:00:00]} Rxe7 {[%emt 0:00:00]} 35. Rxc6 {[%emt 0:00:00]} Bf5 {[%emt 0:00:00]} 36. Qf2 {[%emt 0:00:00]} hxg2 {[%emt 0:00:30]} 37. Qg3+ {[%emt 0:00:30]} Kh8 {[%emt 0:00:00]} 38. Qf2 {[%emt 0:00:30]} Rh7 {[%emt 0:00:00]} 39. Kxg2 {[%emt 0:00:00]} Bh3+ {[%emt 0:00:30]} 40. Kg1 {[%emt 0:00:00]} Qb1+ {[%emt 0:00:30]} 0-1